Cogmind - Beta 9.6 @@@ ROGUE MODE // 2020.08.20 @ 21:02:58 Player: Cracklepappy Result: Self-destructed Performance ------------- Evolutions (1) 500 Regions Visited (3) 600 Robots Destroyed (20) 100 Value Destroyed (240) 240 Prototype IDs (0) 0 Alien Tech Used (0) 0 Bonus (0) 0 TOTAL SCORE: 1440 Bonus ------- None Cogmind --------- Core Integrity 343/400 Matter 236/300 Energy 125/125 System Corruption 0% Temperature Cool (0) Movement Rolling (100) Ox2 Location -9/Storage Parts ------- > --- POWER (1) -------- Light Ion Engine > --- PROPULSION (2) --- Wheel > --- UTILITY (4) ------ Small Storage Unit Improved Sensor Array Improved Terrain Scanner > --- WEAPON (2) ------- Shock Bomb Launcher Shock Bomb Launcher > --- INVENTORY (6) ---- Wheel Improved Terrain Scanner Shock Bomb Launcher Katana Katana Katana Peak State ------------ > --- POWER ------------ Light Ion Engine > --- PROPULSION ------- Wheel > --- UTILITY ---------- Small Storage Unit Improved Sensor Array Improved Terrain Scanner > --- WEAPON ----------- Shock Bomb Launcher Katana > --- INVENTORY -------- Wheel Improved Terrain Scanner Shock Bomb Launcher Shock Bomb Launcher Katana [Rating: 14] Favorites ----------- Power Ion Engine Engine Ion Engine Propulsion Wheel Wheel Wheel Utility Small Storage Unit Device Improved Sensor Array Storage Small Storage Unit Weapon Medium Laser Energy Gun Medium Laser Ballistic Gun Heavy Assault Rifle Launcher Shock Bomb Launcher Slashing Weapon Katana Build | -11 -10 -9 -9 ------- Run | Scr Mat Mat Sto Slots Evolved 2 | . . 2 . Power . | . . . . Propulsion . | . . . . Utility 2 | . . 2 . Weapon . | . . . . Parts Attached 17 | 6 2 9 . Power 3 | 1 1 1 . Engine 3 | 1 1 1 . Core . | . . . . Reactor . | . . . . Propulsion 3 | 2 . 1 . Treads . | . . . . Leg . | . . . . Wheel 3 | 2 . 1 . Hover . | . . . . Flight . | . . . . Utility 3 | 1 . 2 . Device 2 | . . 2 . Storage 1 | 1 . . . Processor . | . . . . Hackware . | . . . . Protection . | . . . . Artifact . | . . . . Weapon 8 | 2 1 5 . Energy Gun 3 | 2 1 . . Energy Cannon . | . . . . Ballistic Gun 2 | . . 2 . Ballistic Cannon . | . . . . Launcher 2 | . . 2 . Special Weapon . | . . . . Impact Weapon . | . . . . Slashing Weapon 1 | . . 1 . Piercing Weapon . | . . . . Special Melee Weapon . | . . . . Unidentified Prototypes . | . . . . Parts Lost 5 | . 3 2 . Power 2 | . 1 1 . Propulsion 2 | . 1 1 . Utility . | . . . . Weapon 1 | . 1 . . Highest Loss Streak 2 | . 2 1 . Average Slot Usage (%) 75 | . 83 63 . Engine 12 | . 13 11 . Wheel 23 | . 27 17 . Device 1 | . . 4 . Storage 12 | . 14 11 . Energy Gun 17 | . 28 1 . Ballistic Gun 6 | . . 15 . Naked Turns . | . . . . Heaviest Build 21 | 12 12 21 . Greatest Support 20 | 20 20 20 . Greatest Overweight (x) 2 | . . 2 . Average Overweight (x) . | . . . . Largest Inventory Capacity 6 | 6 6 6 . Average Capacity 5 | 5 6 6 . Most Carried 6 | 6 6 6 . Average Carried 4 | 3 5 5 . Final Capacity 6 | 6 6 6 6 Final Carried 6 | 6 6 6 6 Class Distribution -------------------- 100% | Mutant Dominant Class ---------------- Mutant | -10/Materials Mutant | -9/Materials Mutant | -9/Storage Resources | -11 -10 -9 -9 ----------- Run | Scr Mat Mat Sto Matter Collected 380 | 260 20 100 . Remotely . | . . . . Salvage Created 470 | 192 178 100 . Parts 35 | 7 20 8 . Haulers Intercepted . | . . . . Recyclers Shooed . | . . . . Parts Field Recycled . | . . . . Retrieved Matter . | . . . . Parts Self-Destructed . | . . . . Prevented . | . . . . Kills | -11 -10 -9 -9 ------- Run | Scr Mat Mat Sto Combat Hostiles Destroyed 14 | . 10 4 . Guns 14 | . 10 4 . Classes Destroyed 5 | 2 2 1 . Tunneler 5 | 5 . . . Recycler 1 | 1 . . . Swarmer 12 | . 9 3 . Grunt 1 | . 1 . . Sentry 1 | . . 1 . Best Kill Streak 4 | 4 3 3 . Combat Bots Only 3 | . 3 3 . Max Kills in Single Turn 1 | 1 1 1 . Gunslinging . | . . . . Exploded . | . . . . Melee . | . . . . Uniques/NPCs Destroyed . | . . . . Combat | -11 -10 -9 -9 -------- Run | Scr Mat Mat Sto Damage Taken 625 | . 305 320 . Core 125 | . 68 57 . Absorbed by Shields . | . . . . Core Remaining (%) 86 | 100 72 . . Volleys Fired 58 | 16 21 21 . Largest 2 | 2 2 2 . Hottest 90 | 90 90 43 . Shots Fired 114 | 32 40 42 . Gun 114 | 32 40 42 . Cannon . | . . . . Launcher . | . . . . Special . | . . . . Kinetic 42 | . . 42 . Thermal 72 | 32 40 . . Explosive . | . . . . Electromagnetic . | . . . . Robot Hit Streak 9 | 7 9 3 . Robot Miss Streak 8 | 3 8 4 . Penetration Max . | . . . . Secondary Targets 1 | . 1 . . Max Gunslinging Chain 1 | . 1 . . Shots Hit Robots 58 | 20 19 19 . Core Hits 25 | 7 11 7 . Critical Hits . | . . . . Critical Kills . | . . . . Critical Parts Destroyed . | . . . . Melee Attacks . | . . . . Impact . | . . . . Slashing . | . . . . Piercing . | . . . . Sneak Attacks . | . . . . Combat Hostiles . | . . . . Follow-up Attacks . | . . . . Damage Inflicted 654 | 254 207 193 . Guns 654 | 254 207 193 . Cannons . | . . . . Explosions . | . . . . Melee . | . . . . Ramming . | . . . . Kinetic 193 | . . 193 . Thermal 461 | 254 207 . . Explosive . | . . . . Electromagnetic . | . . . . Impact . | . . . . Slashing . | . . . . Piercing . | . . . . Highest Corruption . | . . . . Average Corruption . | . . . . Corruption Purged . | . . . . Overload Shots . | . . . . Overflow Damage . | . . . . Projectiles . | . . . . Explosions . | . . . . Melee . | . . . . Knockbacks . | . . . . Impact . | . . . . Kinetic . | . . . . Secondary . | . . . . Self-Inflicted Damage . | . . . . Shots . | . . . . Rammed . | . . . . Targets Rammed . | . . . . Kicked . | . . . . Crushed . | . . . . Highest Temperature 180 | 120 180 7 . Average Temperature 64 | 49 81 6 . Received Heat Transfer 78 | . 42 36 . Siege Activations . | . . . . Robots Corrupted . | . . . . Combat Hostiles . | . . . . Parts Fried . | . . . . Impact Corruptions . | . . . . Robots Melted . | . . . . Combat Hostiles . | . . . . Parts Melted 3 | 3 . . . Heat Transferred 1238 | 669 569 . . Parts Sabotaged . | . . . . Parts Stolen . | . . . . Parts Stripped . | . . . . Power Chain Reactions . | . . . . Missiles Intercepted . | . . . . Alert | -11 -10 -9 -9 ------- Run | Scr Mat Mat Sto Peak Influence 244 | 30 244 102 . Average Influence 78 | 15 143 65 . Maximum Alert Level 1 | . 1 . . Low Security (%) 86 | 100 64 100 . Level 1 13 | . 35 . . Level 2 . | . . . . Level 3 . | . . . . Level 4 . | . . . . Level 5 . | . . . . High Security . | . . . . Max Security . | . . . . Squads Dispatched 1 | . 1 . . Investigation . | . . . . Extermination . | . . . . Reinforcement 1 | . 1 . . Assault . | . . . . Garrison . | . . . . Intercept . | . . . . Construction Impeded . | . . . . Haulers Reinforced . | . . . . Stealth | -11 -10 -9 -9 --------- Run | Scr Mat Mat Sto Distress Signals 1 | . . 1 . Communications Jammed . | . . . . Distress Signals . | . . . . Times Spotted 19 | . 13 6 . Peak Tracking Total 3 | . 3 3 . Tactical Retreats . | . . . . Traps | -11 -10 -9 -9 ------- Run | Scr Mat Mat Sto Traps Triggered . | . . . . Indirectly . | . . . . Trap Hack Attempts . | . . . . Triggered . | . . . . Disarmed . | . . . . Reprogrammed . | . . . . Reused . | . . . . Traps Extracted . | . . . . Installed . | . . . . Triggered . | . . . . Machines | -11 -10 -9 -9 ---------- Run | Scr Mat Mat Sto Machines Disabled . | . . . . Max in Single Turn . | . . . . Machines Sabotaged . | . . . . Garrisons Compromised . | . . . . Overloaded Fab Kills . | . . . . Fab Network Shutdowns . | . . . . Hacking | -11 -10 -9 -9 --------- Run | Scr Mat Mat Sto Machines Accessed 1 | . . 1 . Terminals 1 | . . 1 . Fabricators . | . . . . Repair Stations . | . . . . Recycling Units . | . . . . Scanalyzers . | . . . . Garrison Access . | . . . . Total Hacks 5 | . . 5 . Successful 2 | . . 2 . Failed 3 | . . 3 . Catastrophic . | . . . . Database Lockouts . | . . . . Manual 5 | . . 5 . Terminals 5 | . . 5 . Fabricators . | . . . . Repair Stations . | . . . . Recycling Units . | . . . . Scanalyzers . | . . . . Garrison Access . | . . . . Terminal Hacks 2 | . . 2 . Alert Level 1 | . . 1 . Unreport Threat 1 | . . 1 . Fabricator Hacks . | . . . . Repair Station Hacks . | . . . . Recycling Unit Hacks . | . . . . Scanalyzer . | . . . . Garrison Access Hacks . | . . . . Unauthorized Hacks . | . . . . Terminals . | . . . . Fabricators . | . . . . Repair Stations . | . . . . Recycling Units . | . . . . Scanalyzers . | . . . . Garrison Access . | . . . . Data Cores Recovered . | . . . . Used . | . . . . Hacking Detections 1 | . . 1 . Full Trace Events . | . . . . Feedback Events . | . . . . Feedback Blocked . | . . . . Robot Schematics Acquired . | . . . . Robots Built . | . . . . Matter . | . . . . Time . | . . . . Total Robot Build Rating . | . . . . Part Schematics Acquired . | . . . . Parts Built . | . . . . Matter . | . . . . Time . | . . . . Total Part Build Rating . | . . . . Parts Repaired . | . . . . Time . | . . . . Parts Recycled . | . . . . Recycled Matter . | . . . . Retrieved Matter . | . . . . Retrieved Components . | . . . . Parts Scanalyzed . | . . . . Part Schematics Acquired . | . . . . Parts Damaged . | . . . . Bothacking | -11 -10 -9 -9 ------------ Run | Scr Mat Mat Sto Used RIF Installer . | . . . . Robots Hacked . | . . . . Non-combat . | . . . . Combat . | . . . . Robot Hacks Applied . | . . . . Relay Couplers Released . | . . . . Robots Rewired . | . . . . Allies Hacked . | . . . . Hacks Repelled . | . . . . Allies | -11 -10 -9 -9 -------- Run | Scr Mat Mat Sto Total Allies . | . . . . Largest Group . | . . . . Highest-Rated Group . | . . . . Highest-Rated Ally . | . . . . Total Orders . | . . . . Ally Attacks . | . . . . Total Damage . | . . . . Kills . | . . . . Allies Corrupted . | . . . . Allies Melted . | . . . . Intel | -11 -10 -9 -9 ------- Run | Scr Mat Mat Sto Robot Analysis Total . | . . . . Derelict Logs Recovered . | . . . . Drone Launches . | . . . . Drone Recoveries . | . . . . Exploration | -11 -10 -9 -9 ------------- Run | Scr Mat Mat Sto Turns Passed 514 | 173 199 142 . Spaces Moved 364 | 135 160 69 . Core 1 | 1 . . . Treads . | . . . . Legs . | . . . . Wheels 363 | 134 160 69 . Hover . | . . . . Flight . | . . . . Fastest Speed 50 | 50 80 80 . Average Speed 80 | 79 80 84 . Slowest Speed 100 | 80 80 100 . Overloaded Moves . | . . . . Propulsion Burnouts . | . . . . Robots Hopped . | . . . . Cave-ins Triggered . | . . . . Exploration Rate (%) 10 | 6 26 7 2 Regions Visited 3 Branch Regions 1 Pre-discovered Areas . | . . . . Known Exits Taken . | . . . . Unknown Exits Taken 3 | 1 1 1 . Scrap Searched . | . . . . Spaces Dug . | . . . . Terrain Destroyed . | . . . . Melee . | . . . . Projectile . | . . . . AOE . | . . . . Actions | -11 -10 -9 -9 --------- Run | Scr Mat Mat Sto Total 473 | 166 191 116 . Wait 11 | . 5 6 . Move 361 | 134 159 68 . Hop . | . . . . Pick Up 19 | 9 3 7 . Fast Attach 6 | 4 . 2 . Attach 9 | 2 2 5 . Detach . | . . . . Swap 2 | . . 2 . Drop 7 | 1 1 5 . Fire 58 | 16 21 21 . Melee . | . . . . Ram . | . . . . Kick . | . . . . Crush . | . . . . Escape Stasis . | . . . . Rewire . | . . . . Trap . | . . . . Miscellaneous . | . . . . Route ------- -11/Scrapyard -10/Materials -9/Materials -9/Storage History --------- Turn | Location | Event 18 | -11/Scrapyard | Discovered new exit (range 15) 174 | -11/Scrapyard | Entered Materials 335 | -10/Materials | Build established: Mutant 362 | -10/Materials | Discovered new exit (range 4) 373 | -10/Materials | Entered another Materials area 373 | -9/Materials | Evolved 2 slots: Utility x2 411 | -9/Materials | Discovered new exit (range 5) 515 | -9/Materials | Entered Storage 515 | -9/Storage | Self-destructed Last Messages --------------- 00423_ Y-45 Defender destroyed. 00433_ Lgt. Ion Engine destroyed. 00451_ S-10 Pest destroyed. 00457_ R-06 Scavenger collects Lgt. Assault Rifle. 00464_ Wheel destroyed. 00468_ S-10 Pest destroyed. 00479_ Acquired 13 matter. 00480_ Acquired 20 matter. 00481_ Acquired 10 matter. 00484_ Acquired 57 matter. 00486_ Dropped Lgt. Assault Rifle. 00487_ Dropped Hvy. Assault Rifle. 00490_ W-16 Scout sends out distress signal. 00493_ Acquired Katana. 00497_ Acquired Shock Bomb Launcher. 00501_ Dropped Sml. Laser. 00503_ Acquired Shock Bomb Launcher. 00509_ Acquired Katana. LOCATION=UNKNOWN GOAL=ESCAPE Map ----- +----------------------------------------------------+ | ?????????????????????????????????????? | | ?????????????????????????????????????? | | ?????????????????????????????????????? | | ?????????????????????????????????????? | | ?????????????????????????????????????? | | ?????????????????????????????????????? | | ?????????????????????????????????????? | | ?????????????????????????????????????? | | ?????????????????????????????????????? | | ?????????????????????????????????????? | | ?????????????????????????????????????? | | ?????????????????????????????????????? | | ?????????????????????????????????????? | | ?????????????????????????????????????? | | ?????????????????????????????????????? | | ?????????????????????????????????????? | | ?????????????????????????????????????? | | ?????????????????????????????????????? | | ?????????????????????????????????????? | | ?????????????????????????????????????? | | ?????????????????????????????????????? | | ?????????????????????????????????????? | | ?????????????????????????????????????? | | ????????????#"Y"#####+######?????????? | | ?????????? #?????????? | | ?????????? @ #?????????? | | ?????????? #?????????? | | ?????????????##" "##+#######?????????? | | ?????????????????????????????????????? | | ?????????????????????????????????????? | | ?????????????????????????????????????? | | ?????????????????????????????????????? | | ?????????????????????????????????????? | | ?????????????????????????????????????? | | ?????????????????????????????????????? | | | | | | | | | | | | | | | | | | | | | | | | | | | | | | | +----------------------------------------------------+ Best States ------------- Heat Dissipation 28 Energy Generation 10 Energy Capacity 250 Matter Stores 300 Matter Capacity 300 Sight Range 16 Robot Scan Range 13 Terrain Scan Range 16 Terrain Scan Density 10 Evasion (%) 44 Item Schematics ----------------- None Robot Schematics ------------------ None Fabricated ------------ Nothing Alien Tech Used ----------------- None Achievements -------------- None Challenges ------------ None Game ------ Seed HeatDisruptionFemtoactuators Manual? 0 Play Time 00:07:54 Cumulative 104.3 hours Start 2020.08.20 @ 20:36:21 End 2020.08.20 @ 21:02:58 Sessions 3 Manual Loads 0 Difficulty Rogue Special Mode None Game No. 128 Rogue 128 Adventurer 0 Explorer 0 Win Type - Total 1 Types 1/0/0/0/0/0/0 Lore% 48 Gallery% 61 Achievement% 45 Wizard Run 0 Options --------- ASCII 0 Keyboard 0 Movement Numpad Keybinds 0 Fullscreen 2 Font 24/Smallcaps Map View 76x50 Tactical HUD 1 Map Filters NONE Filters NONE Steam 1 RUN: ce36d211-388e-4bf3-b031-61751ab59a30